[Event "Titled Tuesday Blitz January 25 2022"]
[White "Leiva, Gianmarco"]
[Black "Nazaretyan, Tigran"]
[WhiteFideId "3804399"]
[BlackFideId "24162345"]
[WhiteElo "2328"]
[BlackElo "2192"]
[Result "1/2-1/2"]
[Round "06"]
[TimeControl "180+1"]
[Date "2022.01.26"]
[WhiteClock "0:00:02"]
[BlackClock "0:00:04"]

1. e4 {[%clk 0:03:00]}  c5 {[%clk 0:01:16]} 2. c3 {[%clk 0:02:55]}  Nf6 {[%clk 0:00:49]} 3. e5 {[%clk 0:02:55]}  Nd5 {[%clk 0:00:49]} 4. d4 {[%clk 0:02:56]}  cxd4 {[%clk 0:00:49]} 5. Bc4 {[%clk 0:02:56]}  Nb6 {[%clk 0:00:49]} 6. Bb3 {[%clk 0:02:57]}  d5 {[%clk 0:00:49]} 7. exd6 {[%clk 0:02:56]}  Qxd6 {[%clk 0:00:49]} 8. Nf3 {[%clk 0:02:56]}  Be6 {[%clk 0:00:49]} 9. Qxd4 {[%clk 0:02:42]}  Qxd4 {[%clk 0:00:47]} 10. Nxd4 {[%clk 0:02:41]}  Bxb3 {[%clk 0:00:47]} 11. axb3 {[%clk 0:02:42]}  Nc6 {[%clk 0:00:45]} 12. Nb5 {[%clk 0:02:37]}  Rc8 {[%clk 0:00:44]} 13. Be3 {[%clk 0:02:27]}  a6 {[%clk 0:00:41]} 14. Bxb6 {[%clk 0:02:23]}  axb5 {[%clk 0:00:41]} 15. b4 {[%clk 0:02:19]}  Ne5 {[%clk 0:00:39]} 16. Na3 {[%clk 0:02:11]}  Nc4 {[%clk 0:00:35]} 17. Nxc4 {[%clk 0:02:09]}  bxc4 {[%clk 0:00:34]} 18. Ra7 {[%clk 0:02:05]}  Kd7 {[%clk 0:00:33]} 19. b5 {[%clk 0:01:59]}  Rb8 {[%clk 0:00:31]} 20. Ke2 {[%clk 0:01:57]}  e6 {[%clk 0:00:31]} 21. Rd1+ {[%clk 0:01:57]}  Ke8 {[%clk 0:00:25]} 22. Bc7 {[%clk 0:01:50]}  Rc8 {[%clk 0:00:23]} 23. Rxb7 {[%clk 0:01:51]}  Bc5 {[%clk 0:00:21]} 24. b6 {[%clk 0:01:49]}  h5 {[%clk 0:00:15]} 25. Be5 {[%clk 0:01:36]}  h4 {[%clk 0:00:13]} 26. Rc7 {[%clk 0:01:34]}  Rxc7 {[%clk 0:00:12]} 27. bxc7 {[%clk 0:01:35]}  Ke7 {[%clk 0:00:13]} 28. Bxg7 {[%clk 0:01:33]}  Rc8 {[%clk 0:00:11]} 29. Bd4 {[%clk 0:01:25]}  Bd6 {[%clk 0:00:10]} 30. Bf6+ {[%clk 0:01:26]}  Kxf6 {[%clk 0:00:09]} 31. Rxd6 {[%clk 0:01:26]}  Rxc7 {[%clk 0:00:10]} 32. Rd4 {[%clk 0:01:19]}  Kg5 {[%clk 0:00:10]} 33. Kd2 {[%clk 0:01:03]}  e5 {[%clk 0:00:10]} 34. Re4 {[%clk 0:01:01]}  f6 {[%clk 0:00:10]} 35. h3 {[%clk 0:00:59]}  Rb7 {[%clk 0:00:08]} 36. Kc2 {[%clk 0:00:59]}  Rc7 {[%clk 0:00:09]} 37. Kc1 {[%clk 0:00:59]}  Rc5 {[%clk 0:00:09]} 38. Rg4+ {[%clk 0:00:58]}  Kh5 {[%clk 0:00:09]} 39. f4 {[%clk 0:00:47]}  e4 {[%clk 0:00:08]} 40. Kd2 {[%clk 0:00:33]}  Rb5 {[%clk 0:00:08]} 41. Ke3 {[%clk 0:00:25]}  f5 {[%clk 0:00:07]} 42. Rg8 {[%clk 0:00:22]}  Rxb2 {[%clk 0:00:06]} 43. Kd4 {[%clk 0:00:12]}  Rd2+ {[%clk 0:00:03]} 44. Ke5 {[%clk 0:00:12]}  e3 {[%clk 0:00:04]} 45. Kxf5 {[%clk 0:00:13]}  Rd5+ {[%clk 0:00:04]} 46. Kf6 {[%clk 0:00:12]}  Rd6+ {[%clk 0:00:03]} 47. Kf5 {[%clk 0:00:12]}  Rd5+ {[%clk 0:00:03]} 48. Kf6 {[%clk 0:00:04]}  Rd6+ {[%clk 0:00:03]} 49. Kf7 {[%clk 0:00:04]}  e2 {[%clk 0:00:02]} 50. Re8 {[%clk 0:00:02]}  Rd7+ {[%clk 0:00:02]} 51. Kf6 {[%clk 0:00:01]}  Rd6+ {[%clk 0:00:03]} 52. Kf5 {[%clk 0:00:01]}  Rd5+ {[%clk 0:00:03]} 53. Kf6 {[%clk 0:00:02]}  Rd6+ {[%clk 0:00:03]} 54. Kg7 {[%clk 0:00:02]}  Rd7+ {[%clk 0:00:04]} 55. Kf6 {[%clk 0:00:02]}  Rd6+ {[%clk 0:00:04]} 1/2-1/2


[Site "https://www.chess.com"]

[Event "Titled Tuesday Blitz January 25 2022"]
[White "Martin, Lewis"]
[Black "Sumaneev, Dmitry"]
[WhiteFideId "410551"]
[BlackFideId "4125312"]
[WhiteElo "2145"]
[BlackElo "2578"]
[Result "1-0"]
[Round "06"]
[TimeControl "180+1"]
[Date "2022.01.26"]
[WhiteClock "0:01:30"]
[BlackClock "0:00:18"]

1. e4 {[%clk 0:03:00]}  e6 {[%clk 0:02:59]} 2. d4 {[%clk 0:03:00]}  d5 {[%clk 0:03:00]} 3. exd5 {[%clk 0:03:01]}  exd5 {[%clk 0:03:00]} 4. Bd3 {[%clk 0:03:01]}  c5 {[%clk 0:02:59]} 5. c3 {[%clk 0:02:59]}  c4 {[%clk 0:02:59]} 6. Bc2 {[%clk 0:02:59]}  Nc6 {[%clk 0:03:00]} 7. Nf3 {[%clk 0:02:59]}  Bd6 {[%clk 0:03:00]} 8. O-O {[%clk 0:02:59]}  Nge7 {[%clk 0:03:01]} 9. Re1 {[%clk 0:02:58]}  O-O {[%clk 0:03:01]} 10. Nbd2 {[%clk 0:02:58]}  Bf5 {[%clk 0:02:55]} 11. Nf1 {[%clk 0:02:57]}  b5 {[%clk 0:02:53]} 12. Ng3 {[%clk 0:02:49]}  Bg6 {[%clk 0:02:50]} 13. Nh4 {[%clk 0:02:39]}  Qd7 {[%clk 0:02:42]} 14. Nxg6 {[%clk 0:02:36]}  hxg6 {[%clk 0:02:43]} 15. Qf3 {[%clk 0:02:30]}  a5 {[%clk 0:02:37]} 16. Bf4 {[%clk 0:02:28]}  Rfe8 {[%clk 0:02:34]} 17. h4 {[%clk 0:02:25]}  Qc7 {[%clk 0:02:18]} 18. Bxd6 {[%clk 0:02:23]}  Qxd6 {[%clk 0:02:19]} 19. h5 {[%clk 0:02:22]}  gxh5 {[%clk 0:02:15]} 20. Qxh5 {[%clk 0:02:15]}  g6 {[%clk 0:01:54]} 21. Qg5 {[%clk 0:02:08]}  Nb8 {[%clk 0:00:56]} 22. Re3 {[%clk 0:02:01]}  Ra7 {[%clk 0:00:27]} 23. Rae1 {[%clk 0:01:57]}  Nbc6 {[%clk 0:00:25]} 24. Nf5 {[%clk 0:01:50]}  Nxf5 {[%clk 0:00:20]} 25. Rxe8+ {[%clk 0:01:48]}  Kg7 {[%clk 0:00:21]} 26. Bxf5 {[%clk 0:01:46]}  b4 {[%clk 0:00:18]} 27. R1e6 {[%clk 0:01:30]} 1-0


[Site "https://www.chess.com"]

[Event "Titled Tuesday Blitz January 25 2022"]
[White "Michelakos, Panagiotis"]
[Black "Mischuk, Dmitry"]
[WhiteFideId "4216067"]
[BlackFideId "14118734"]
[WhiteElo "2140"]
[BlackElo "2256"]
[Result "1-0"]
[Round "06"]
[TimeControl "180+1"]
[Date "2022.01.26"]
[WhiteClock "0:01:54"]
[BlackClock "0:02:04"]

1. d4 {[%clk 0:03:00]}  Nf6 {[%clk 0:02:52]} 2. c4 {[%clk 0:02:59]}  e6 {[%clk 0:02:51]} 3. Nc3 {[%clk 0:02:59]}  d5 {[%clk 0:02:50]} 4. cxd5 {[%clk 0:02:59]}  Nxd5 {[%clk 0:02:47]} 5. e4 {[%clk 0:02:57]}  Nxc3 {[%clk 0:02:46]} 6. bxc3 {[%clk 0:02:56]}  c5 {[%clk 0:02:47]} 7. Nf3 {[%clk 0:02:43]}  Be7 {[%clk 0:02:46]} 8. Bd3 {[%clk 0:02:40]}  b6 {[%clk 0:02:45]} 9. O-O {[%clk 0:02:29]}  O-O {[%clk 0:02:44]} 10. d5 {[%clk 0:02:28]}  exd5 {[%clk 0:02:36]} 11. exd5 {[%clk 0:02:27]}  Nd7 {[%clk 0:02:36]} 12. Bf4 {[%clk 0:02:22]}  Nf6 {[%clk 0:02:36]} 13. d6 {[%clk 0:02:18]}  Bxd6 {[%clk 0:02:07]} 14. Bxd6 {[%clk 0:02:19]}  Re8 {[%clk 0:02:07]} 15. Be5 {[%clk 0:02:17]}  Ng4 {[%clk 0:02:06]} 16. Bg3 {[%clk 0:02:05]}  Qf6 {[%clk 0:02:06]} 17. Qa4 {[%clk 0:01:56]}  Bb7 {[%clk 0:02:04]} 18. Qxg4 {[%clk 0:01:54]} 1-0


[Site "https://www.chess.com"]

[Event "Titled Tuesday Blitz January 25 2022"]
[White "Nakamura, Hikaru"]
[Black "Bortnyk, Olexandr"]
[WhiteFideId "2016192"]
[BlackFideId "14120828"]
[WhiteElo "2850"]
[BlackElo "2723"]
[Result "1-0"]
[Round "06"]
[TimeControl "180+1"]
[Date "2022.01.26"]
[WhiteClock "0:00:11"]
[BlackClock "0:00:02"]

1. e4 {[%clk 0:03:00]}  Nf6 {[%clk 0:03:00]} 2. Nc3 {[%clk 0:03:00]}  d6 {[%clk 0:02:58]} 3. d4 {[%clk 0:03:00]}  Nbd7 {[%clk 0:02:59]} 4. Nf3 {[%clk 0:02:58]}  e5 {[%clk 0:03:00]} 5. Bc4 {[%clk 0:02:59]}  Be7 {[%clk 0:03:00]} 6. O-O {[%clk 0:02:59]}  O-O {[%clk 0:03:00]} 7. a4 {[%clk 0:02:58]}  a6 {[%clk 0:03:00]} 8. a5 {[%clk 0:02:57]}  b5 {[%clk 0:02:42]} 9. axb6 {[%clk 0:02:58]}  cxb6 {[%clk 0:02:42]} 10. dxe5 {[%clk 0:02:35]}  dxe5 {[%clk 0:02:42]} 11. Qe2 {[%clk 0:02:35]}  Bb7 {[%clk 0:02:42]} 12. Rd1 {[%clk 0:02:35]}  b5 {[%clk 0:02:30]} 13. Bd5 {[%clk 0:02:33]}  Qc7 {[%clk 0:02:29]} 14. Bxb7 {[%clk 0:02:21]}  Qxb7 {[%clk 0:02:30]} 15. Bg5 {[%clk 0:02:21]}  Rfe8 {[%clk 0:01:40]} 16. Bxf6 {[%clk 0:02:16]}  Nxf6 {[%clk 0:01:41]} 17. Nd5 {[%clk 0:02:16]}  Nxd5 {[%clk 0:01:40]} 18. Rxd5 {[%clk 0:02:16]}  f6 {[%clk 0:01:40]} 19. Rad1 {[%clk 0:02:11]}  Qc6 {[%clk 0:01:39]} 20. Nh4 {[%clk 0:02:08]}  Rac8 {[%clk 0:01:33]} 21. Nf5 {[%clk 0:02:04]}  Bf8 {[%clk 0:01:13]} 22. h4 {[%clk 0:01:37]}  Qxc2 {[%clk 0:00:55]} 23. Qg4 {[%clk 0:01:36]}  Kh8 {[%clk 0:00:55]} 24. g3 {[%clk 0:01:08]}  Qc6 {[%clk 0:00:27]} 25. Rd6 {[%clk 0:00:55]}  Qc4 {[%clk 0:00:20]} 26. Rxa6 {[%clk 0:00:46]}  Red8 {[%clk 0:00:14]} 27. Rda1 {[%clk 0:00:28]}  Rc7 {[%clk 0:00:13]} 28. h5 {[%clk 0:00:27]}  Qf7 {[%clk 0:00:09]} 29. Ra8 {[%clk 0:00:23]}  Rcd7 {[%clk 0:00:09]} 30. Kg2 {[%clk 0:00:22]}  b4 {[%clk 0:00:09]} 31. R1a6 {[%clk 0:00:20]}  b3 {[%clk 0:00:06]} 32. Nh4 {[%clk 0:00:20]}  Kg8 {[%clk 0:00:02]} 33. Nf5 {[%clk 0:00:21]}  Kh8 {[%clk 0:00:03]} 34. Ne3 {[%clk 0:00:17]}  Kg8 {[%clk 0:00:03]} 35. Ra4 {[%clk 0:00:15]}  Kh8 {[%clk 0:00:03]} 36. Rxd8 {[%clk 0:00:13]}  Rxd8 {[%clk 0:00:04]} 37. Nd5 {[%clk 0:00:14]}  f5 {[%clk 0:00:02]} 38. Qf3 {[%clk 0:00:14]}  f4 {[%clk 0:00:02]} 39. Rc4 {[%clk 0:00:13]}  Bd6 {[%clk 0:00:02]} 40. Rc6 {[%clk 0:00:11]}  h6 {[%clk 0:00:02]} 41. g4 {[%clk 0:00:11]}  Kg8 {[%clk 0:00:02]} 42. Rb6 {[%clk 0:00:11]}  Kf8 {[%clk 0:00:03]} 43. Rxb3 {[%clk 0:00:12]}  Qd7 {[%clk 0:00:03]} 44. Rc3 {[%clk 0:00:11]}  Rb8 {[%clk 0:00:03]} 45. b3 {[%clk 0:00:12]}  Qb5 {[%clk 0:00:03]} 46. Qd3 {[%clk 0:00:12]}  Qxd3 {[%clk 0:00:03]} 47. Rxd3 {[%clk 0:00:13]}  Bc5 {[%clk 0:00:04]} 48. Nc7 {[%clk 0:00:11]}  Rb6 {[%clk 0:00:05]} 49. Rd5 {[%clk 0:00:06]}  Bd4 {[%clk 0:00:04]} 50. Nb5 {[%clk 0:00:07]}  Bb2 {[%clk 0:00:04]} 51. Kf3 {[%clk 0:00:07]}  Ke7 {[%clk 0:00:04]} 52. Ke2 {[%clk 0:00:08]}  Kf6 {[%clk 0:00:04]} 53. f3 {[%clk 0:00:08]}  Kg5 {[%clk 0:00:05]} 54. Kd2 {[%clk 0:00:07]}  Kh4 {[%clk 0:00:05]} 55. Kc2 {[%clk 0:00:07]}  Ba1 {[%clk 0:00:05]} 56. Kb1 {[%clk 0:00:07]}  Bd4 {[%clk 0:00:05]} 57. Kc2 {[%clk 0:00:03]}  Kg3 {[%clk 0:00:05]} 58. Nxd4 {[%clk 0:00:04]}  exd4 {[%clk 0:00:06]} 59. e5 {[%clk 0:00:05]}  Kxf3 {[%clk 0:00:06]} 60. Rxd4 {[%clk 0:00:05]}  Re6 {[%clk 0:00:05]} 61. Rd7 {[%clk 0:00:04]}  Rxe5 {[%clk 0:00:03]} 62. Rxg7 {[%clk 0:00:05]}  Kg2 {[%clk 0:00:03]} 63. g5 {[%clk 0:00:03]}  hxg5 {[%clk 0:00:04]} 64. h6 {[%clk 0:00:04]}  Re8 {[%clk 0:00:03]} 65. h7 {[%clk 0:00:05]}  Rh8 {[%clk 0:00:04]} 66. Rxg5+ {[%clk 0:00:05]}  Kf2 {[%clk 0:00:04]} 67. Rg7 {[%clk 0:00:06]}  Ke3 {[%clk 0:00:04]} 68. Re7+ {[%clk 0:00:05]}  Kf2 {[%clk 0:00:03]} 69. Rf7 {[%clk 0:00:06]}  f3 {[%clk 0:00:03]} 70. Kd3 {[%clk 0:00:07]}  Rd8+ {[%clk 0:00:03]} 71. Ke4 {[%clk 0:00:07]}  Re8+ {[%clk 0:00:04]} 72. Kf5 {[%clk 0:00:07]}  Kg2 {[%clk 0:00:04]} 73. Kg6 {[%clk 0:00:08]}  f2 {[%clk 0:00:04]} 74. Kg7 {[%clk 0:00:09]}  Re7 {[%clk 0:00:02]} 75. Rxe7 {[%clk 0:00:09]}  f1=Q {[%clk 0:00:03]} 76. h8=Q {[%clk 0:00:10]}  Qa1+ {[%clk 0:00:03]} 77. Kg8 {[%clk 0:00:10]}  Qa8+ {[%clk 0:00:03]} 78. Kh7 {[%clk 0:00:11]}  Qa3 {[%clk 0:00:01]} 79. Qg7+ {[%clk 0:00:10]}  Kh3 {[%clk 0:00:01]} 80. Re3+ {[%clk 0:00:10]}  Kh2 {[%clk 0:00:02]} 81. Qg3+ {[%clk 0:00:11]} 1-0


[Site "https://www.chess.com"]

[Event "Titled Tuesday Blitz January 25 2022"]
[White "Obolenskikh, Dmitry"]
[Black "Golubev, Mikhail"]
[WhiteFideId "4156013"]
[BlackFideId "14100983"]
[WhiteElo "2512"]
[BlackElo "2374"]
[Result "1-0"]
[Round "06"]
[TimeControl "180+1"]
[Date "2022.01.26"]
[WhiteClock "0:00:08"]
[BlackClock "0:00:01"]

1. Nf3 {[%clk 0:03:00]}  d6 {[%clk 0:02:59]} 2. d4 {[%clk 0:03:00]}  Nf6 {[%clk 0:02:59]} 3. c4 {[%clk 0:02:59]}  g6 {[%clk 0:02:58]} 4. Nc3 {[%clk 0:02:59]}  Bg7 {[%clk 0:02:59]} 5. e4 {[%clk 0:02:59]}  O-O {[%clk 0:02:59]} 6. h3 {[%clk 0:03:00]}  a6 {[%clk 0:02:56]} 7. Bg5 {[%clk 0:02:54]}  c5 {[%clk 0:02:48]} 8. Qd2 {[%clk 0:02:48]}  cxd4 {[%clk 0:02:41]} 9. Nxd4 {[%clk 0:02:48]}  Nc6 {[%clk 0:02:42]} 10. Be3 {[%clk 0:02:47]}  Bd7 {[%clk 0:02:35]} 11. Be2 {[%clk 0:02:47]}  Nxd4 {[%clk 0:02:28]} 12. Bxd4 {[%clk 0:02:47]}  b5 {[%clk 0:02:20]} 13. cxb5 {[%clk 0:02:33]}  axb5 {[%clk 0:02:21]} 14. O-O {[%clk 0:02:24]}  e5 {[%clk 0:02:13]} 15. Be3 {[%clk 0:02:20]}  b4 {[%clk 0:02:08]} 16. Nb5 {[%clk 0:02:18]}  Nxe4 {[%clk 0:01:28]} 17. Qxb4 {[%clk 0:02:18]}  d5 {[%clk 0:01:27]} 18. a4 {[%clk 0:02:01]}  d4 {[%clk 0:01:21]} 19. Bc1 {[%clk 0:01:42]}  Re8 {[%clk 0:00:55]} 20. Bc4 {[%clk 0:01:33]}  Be6 {[%clk 0:00:42]} 21. Bxe6 {[%clk 0:01:33]}  Rxe6 {[%clk 0:00:42]} 22. Re1 {[%clk 0:01:30]}  Bf8 {[%clk 0:00:37]} 23. Qc4 {[%clk 0:01:24]}  Rc8 {[%clk 0:00:24]} 24. Qd3 {[%clk 0:01:14]}  Nc5 {[%clk 0:00:22]} 25. Qd1 {[%clk 0:01:14]}  e4 {[%clk 0:00:18]} 26. Qxd4 {[%clk 0:01:02]}  Qe8 {[%clk 0:00:18]} 27. Qd1 {[%clk 0:00:33]}  Nd3 {[%clk 0:00:17]} 28. Re2 {[%clk 0:00:29]}  Bc5 {[%clk 0:00:14]} 29. Be3 {[%clk 0:00:29]}  Bxe3 {[%clk 0:00:14]} 30. Rxe3 {[%clk 0:00:28]}  f5 {[%clk 0:00:12]} 31. Qb3 {[%clk 0:00:22]}  Kg7 {[%clk 0:00:11]} 32. a5 {[%clk 0:00:20]}  f4 {[%clk 0:00:10]} 33. Re2 {[%clk 0:00:20]}  f3 {[%clk 0:00:10]} 34. gxf3 {[%clk 0:00:20]}  exf3 {[%clk 0:00:09]} 35. Rxe6 {[%clk 0:00:19]}  Qd8 {[%clk 0:00:07]} 36. Kh1 {[%clk 0:00:16]}  Qh4 {[%clk 0:00:06]} 37. Re7+ {[%clk 0:00:13]}  Kh6 {[%clk 0:00:05]} 38. Rxh7+ {[%clk 0:00:11]}  Kxh7 {[%clk 0:00:06]} 39. Qf7+ {[%clk 0:00:12]}  Kh8 {[%clk 0:00:05]} 40. Qxf3 {[%clk 0:00:12]}  Nxf2+ {[%clk 0:00:05]} 41. Kg1 {[%clk 0:00:11]}  Nxh3+ {[%clk 0:00:04]} 42. Kf1 {[%clk 0:00:12]}  Kg7 {[%clk 0:00:03]} 43. Nd4 {[%clk 0:00:10]}  Re8 {[%clk 0:00:01]} 44. a6 {[%clk 0:00:08]}  Ng5 {[%clk 0:00:01]} 45. Qb7+ {[%clk 0:00:08]} 1-0


[Site "https://www.chess.com"]

[Event "Titled Tuesday Blitz January 25 2022"]
[White "Ocelak, Jakub"]
[Black "Ambartsumova, Karina"]
[WhiteFideId "23707933"]
[BlackFideId "4166299"]
[WhiteElo "2048"]
[BlackElo "2262"]
[Result "1/2-1/2"]
[Round "06"]
[TimeControl "180+1"]
[Date "2022.01.26"]
[WhiteClock "0:00:06"]
[BlackClock "0:00:06"]

1. d4 {[%clk 0:03:00]}  Nf6 {[%clk 0:02:58]} 2. Bf4 {[%clk 0:03:00]}  d5 {[%clk 0:02:55]} 3. e3 {[%clk 0:03:00]}  e6 {[%clk 0:02:55]} 4. Nd2 {[%clk 0:02:58]}  Bd6 {[%clk 0:02:53]} 5. Bg3 {[%clk 0:02:58]}  O-O {[%clk 0:02:53]} 6. Bd3 {[%clk 0:02:58]}  c5 {[%clk 0:02:52]} 7. c3 {[%clk 0:02:58]}  Qc7 {[%clk 0:02:51]} 8. Ngf3 {[%clk 0:02:51]}  Nbd7 {[%clk 0:02:50]} 9. Bxd6 {[%clk 0:02:51]}  Qxd6 {[%clk 0:02:51]} 10. O-O {[%clk 0:02:50]}  e5 {[%clk 0:02:49]} 11. e4 {[%clk 0:02:49]}  cxd4 {[%clk 0:02:35]} 12. cxd4 {[%clk 0:02:48]}  exd4 {[%clk 0:02:36]} 13. Re1 {[%clk 0:02:41]}  dxe4 {[%clk 0:02:31]} 14. Nxe4 {[%clk 0:02:41]}  Nxe4 {[%clk 0:02:31]} 15. Bxe4 {[%clk 0:02:41]}  Nf6 {[%clk 0:02:13]} 16. Qxd4 {[%clk 0:02:36]}  Qxd4 {[%clk 0:01:59]} 17. Nxd4 {[%clk 0:02:37]}  Rd8 {[%clk 0:01:47]} 18. Rad1 {[%clk 0:02:23]}  Nxe4 {[%clk 0:01:28]} 19. Rxe4 {[%clk 0:02:21]}  Be6 {[%clk 0:00:59]} 20. a3 {[%clk 0:02:01]}  Rd6 {[%clk 0:00:54]} 21. Rde1 {[%clk 0:01:55]}  Bd7 {[%clk 0:00:49]} 22. Nf5 {[%clk 0:01:22]}  Re6 {[%clk 0:00:42]} 23. Rxe6 {[%clk 0:01:07]}  Bxe6 {[%clk 0:00:42]} 24. Nd4 {[%clk 0:01:07]}  Bd5 {[%clk 0:00:39]} 25. f3 {[%clk 0:01:07]}  Kf8 {[%clk 0:00:37]} 26. Kf2 {[%clk 0:01:06]}  Rc8 {[%clk 0:00:37]} 27. Re2 {[%clk 0:01:02]}  a6 {[%clk 0:00:35]} 28. Rc2 {[%clk 0:01:01]}  Rxc2+ {[%clk 0:00:32]} 29. Nxc2 {[%clk 0:01:02]}  Ke7 {[%clk 0:00:33]} 30. Ke3 {[%clk 0:01:00]}  Kd6 {[%clk 0:00:33]} 31. Kd4 {[%clk 0:00:57]}  Be6 {[%clk 0:00:32]} 32. Ne3 {[%clk 0:00:56]}  f6 {[%clk 0:00:32]} 33. f4 {[%clk 0:00:56]}  h6 {[%clk 0:00:26]} 34. Nd1 {[%clk 0:00:52]}  Bd5 {[%clk 0:00:26]} 35. Ne3 {[%clk 0:00:49]}  Be6 {[%clk 0:00:21]} 36. g3 {[%clk 0:00:48]}  g5 {[%clk 0:00:20]} 37. fxg5 {[%clk 0:00:34]}  fxg5 {[%clk 0:00:20]} 38. Nf1 {[%clk 0:00:30]}  Bf5 {[%clk 0:00:17]} 39. Nd2 {[%clk 0:00:29]}  Ke6 {[%clk 0:00:16]} 40. Nc4 {[%clk 0:00:29]}  Bh3 {[%clk 0:00:14]} 41. Ne3 {[%clk 0:00:27]}  b6 {[%clk 0:00:13]} 42. g4 {[%clk 0:00:26]}  Kf6 {[%clk 0:00:12]} 43. Ke4 {[%clk 0:00:26]}  Kg6 {[%clk 0:00:11]} 44. Kf3 {[%clk 0:00:25]}  h5 {[%clk 0:00:12]} 45. gxh5+ {[%clk 0:00:20]}  Kxh5 {[%clk 0:00:11]} 46. Nd5 {[%clk 0:00:20]}  b5 {[%clk 0:00:10]} 47. Nc7 {[%clk 0:00:18]}  Bc8 {[%clk 0:00:10]} 48. Kg3 {[%clk 0:00:18]}  Kg6 {[%clk 0:00:10]} 49. Nd5 {[%clk 0:00:17]}  Bb7 {[%clk 0:00:08]} 50. Nc3 {[%clk 0:00:16]}  Kf5 {[%clk 0:00:08]} 51. h3 {[%clk 0:00:16]}  Bc8 {[%clk 0:00:08]} 52. Nd5 {[%clk 0:00:15]}  Ke5 {[%clk 0:00:08]} 53. Ne7 {[%clk 0:00:14]}  Bd7 {[%clk 0:00:06]} 54. Ng8 {[%clk 0:00:11]}  Be6 {[%clk 0:00:05]} 55. Nh6 {[%clk 0:00:11]}  Kd4 {[%clk 0:00:05]} 56. Ng4 {[%clk 0:00:10]}  Kc4 {[%clk 0:00:06]} 57. Nf2 {[%clk 0:00:05]}  Kb3 {[%clk 0:00:06]} 58. Ne4 {[%clk 0:00:06]}  Kxb2 {[%clk 0:00:05]} 59. Nxg5 {[%clk 0:00:06]}  Bxh3 {[%clk 0:00:06]} 60. Nxh3 {[%clk 0:00:05]}  Kxa3 {[%clk 0:00:07]} 61. Kf3 {[%clk 0:00:03]}  b4 {[%clk 0:00:07]} 62. Ke2 {[%clk 0:00:03]}  b3 {[%clk 0:00:08]} 63. Kd2 {[%clk 0:00:04]}  b2 {[%clk 0:00:08]} 64. Nf2 {[%clk 0:00:02]}  Ka2 {[%clk 0:00:09]} 65. Ne4 {[%clk 0:00:02]}  b1=Q {[%clk 0:00:09]} 66. Nc3+ {[%clk 0:00:02]}  Kb2 {[%clk 0:00:10]} 67. Nxb1 {[%clk 0:00:03]}  Kxb1 {[%clk 0:00:10]} 68. Kc3 {[%clk 0:00:04]}  a5 {[%clk 0:00:07]} 69. Kb3 {[%clk 0:00:04]}  Kc1 {[%clk 0:00:05]} 70. Ka4 {[%clk 0:00:05]}  Kb2 {[%clk 0:00:06]} 71. Kxa5 {[%clk 0:00:06]} 1/2-1/2


[Site "https://www.chess.com"]

[Event "Titled Tuesday Blitz January 25 2022"]
[White "Ogloblin, Nikolay"]
[Black "Aradhya, Garg"]
[WhiteFideId "4139658"]
[BlackFideId "25006746"]
[WhiteElo "2306"]
[BlackElo "2169"]
[Result "0-1"]
[Round "06"]
[TimeControl "180+1"]
[Date "2022.01.26"]
[WhiteClock "0:00:58"]
[BlackClock "0:00:25"]

1. d4 {[%clk 0:03:00]}  d5 {[%clk 0:02:55]} 2. Nf3 {[%clk 0:03:01]}  Nf6 {[%clk 0:02:54]} 3. c4 {[%clk 0:03:01]}  c6 {[%clk 0:02:53]} 4. e3 {[%clk 0:03:01]}  Bf5 {[%clk 0:02:53]} 5. Nc3 {[%clk 0:03:00]}  e6 {[%clk 0:02:53]} 6. Nh4 {[%clk 0:03:01]}  h5 {[%clk 0:02:52]} 7. Qb3 {[%clk 0:02:56]}  Qd7 {[%clk 0:02:51]} 8. Nxf5 {[%clk 0:02:52]}  exf5 {[%clk 0:02:52]} 9. cxd5 {[%clk 0:02:47]}  cxd5 {[%clk 0:02:52]} 10. Bd2 {[%clk 0:02:48]}  Nc6 {[%clk 0:02:52]} 11. O-O-O {[%clk 0:02:43]}  Be7 {[%clk 0:02:50]} 12. Kb1 {[%clk 0:02:43]}  O-O {[%clk 0:02:50]} 13. Rc1 {[%clk 0:02:43]}  Rfc8 {[%clk 0:02:43]} 14. f3 {[%clk 0:02:42]}  f4 {[%clk 0:02:42]} 15. Bd3 {[%clk 0:02:40]}  Nb4 {[%clk 0:02:35]} 16. Ne2 {[%clk 0:02:27]}  Nxd3 {[%clk 0:01:50]} 17. Qxd3 {[%clk 0:02:26]}  fxe3 {[%clk 0:01:50]} 18. Bxe3 {[%clk 0:02:26]}  g6 {[%clk 0:01:48]} 19. Bg5 {[%clk 0:02:23]}  Kg7 {[%clk 0:01:45]} 20. Rxc8 {[%clk 0:02:20]}  Rxc8 {[%clk 0:01:44]} 21. Rc1 {[%clk 0:02:20]}  Rxc1+ {[%clk 0:01:38]} 22. Nxc1 {[%clk 0:02:20]}  Bd6 {[%clk 0:01:34]} 23. Bxf6+ {[%clk 0:02:16]}  Kxf6 {[%clk 0:01:35]} 24. h3 {[%clk 0:02:16]}  Qf5 {[%clk 0:01:35]} 25. Kc2 {[%clk 0:02:13]}  Kg5 {[%clk 0:01:34]} 26. Ne2 {[%clk 0:02:11]}  a6 {[%clk 0:01:10]} 27. g4 {[%clk 0:02:10]}  hxg4 {[%clk 0:01:01]} 28. hxg4 {[%clk 0:02:10]}  Qe6 {[%clk 0:00:56]} 29. Qd2+ {[%clk 0:02:05]}  Kf6 {[%clk 0:00:56]} 30. Nc3 {[%clk 0:02:05]}  Kg7 {[%clk 0:00:52]} 31. Kd3 {[%clk 0:02:06]}  Bb4 {[%clk 0:00:49]} 32. Qe2 {[%clk 0:01:59]}  Bxc3 {[%clk 0:00:49]} 33. Qxe6 {[%clk 0:01:58]}  fxe6 {[%clk 0:00:50]} 34. Kxc3 {[%clk 0:01:58]}  Kf6 {[%clk 0:00:45]} 35. Kd3 {[%clk 0:01:58]}  e5 {[%clk 0:00:40]} 36. Ke3 {[%clk 0:01:53]}  g5 {[%clk 0:00:40]} 37. Kd3 {[%clk 0:01:45]}  Ke6 {[%clk 0:00:39]} 38. b3 {[%clk 0:01:44]}  a5 {[%clk 0:00:36]} 39. a3 {[%clk 0:01:44]}  Kd6 {[%clk 0:00:36]} 40. b4 {[%clk 0:01:40]}  axb4 {[%clk 0:00:35]} 41. axb4 {[%clk 0:01:40]}  Ke6 {[%clk 0:00:32]} 42. Ke3 {[%clk 0:01:40]}  Kd6 {[%clk 0:00:29]} 43. Kd3 {[%clk 0:01:40]}  exd4 {[%clk 0:00:28]} 44. Kxd4 {[%clk 0:01:40]}  Ke6 {[%clk 0:00:28]} 45. b5 {[%clk 0:01:02]}  b6 {[%clk 0:00:27]} 46. f4 {[%clk 0:00:59]}  gxf4 {[%clk 0:00:27]} 47. g5 {[%clk 0:00:59]}  Kf5 {[%clk 0:00:26]} 48. Kxd5 {[%clk 0:00:59]}  f3 {[%clk 0:00:25]} 49. Kc6 {[%clk 0:00:59]}  f2 {[%clk 0:00:25]} 50. Kxb6 {[%clk 0:00:59]}  f1=Q {[%clk 0:00:26]} 51. Kc6 {[%clk 0:00:58]}  Qc4+ {[%clk 0:00:25]} 52. Kb6 {[%clk 0:00:58]}  Kxg5 {[%clk 0:00:26]} 53. Ka5 {[%clk 0:00:58]}  Qc8 {[%clk 0:00:25]} 0-1


[Site "https://www.chess.com"]